Cogmind - Beta 17.1 @@@ ROGUE MODE // 2026.09.06 @ 16:54:34 Player: 4R-ZE3 Result: Destroyed by VV-94Y(R) with Subdweller Shrapnel Launcher Performance ------------- Evolutions (0) 0 Regions Visited (2) 400 Robots Destroyed (28) 140 Value Destroyed (736) 736 Prototype IDs (1) 20 Alien Tech Used (0) 0 Bonus (-17) -17 TOTAL SCORE: 1279 Bonus ------- Friendly Fire -17 Cogmind --------- Core Integrity 0/250 Matter 300/300 Energy 38/100 System Corruption 0% Temperature Cool (2) Movement Treading (160) Location -10/Subcaves Parts ------- > --- POWER (1) -------- (None) > --- PROPULSION (2) --- Spiked Treads > --- UTILITY (2) ------ Medium Storage Unit > --- WEAPON (2) ------- Subdweller Beam Cannon > --- INVENTORY (10) --- Light Treads Light Treads Subdweller Monowheel Subdweller Monowheel Medium Laser Improved Medium Laser Assault Rifle Battle Rifle Subdweller Machine Gun Multitool Peak State ------------ > --- POWER ------------ Ion Engine > --- PROPULSION ------- Light Treads Light Treads > --- UTILITY ---------- Improved Heat Sink Medium Storage Unit > --- WEAPON ----------- Improved Medium Laser Improved Medium Laser > --- INVENTORY -------- Ion Engine Light Treads Heat Sink Small Storage Unit Medium Laser Improved Medium Laser Assault Rifle Light Assault Rifle Mining Laser [Rating: 14] Favorites ----------- Power Ion Engine Engine Ion Engine Propulsion Light Treads Treads Light Treads Wheel Subdweller Monowheel Utility Medium Storage Unit Device Heat Sink Storage Medium Storage Unit Weapon Improved Medium Laser Energy Gun Improved Medium Laser Energy Cannon Subdweller Beam Cannon Ballistic Gun Battle Rifle Ballistic Cannon Battle Cannon Special Weapon Mining Laser Build | -11 -10 -10 ------- Run | Yrd Mat Sub Slots Evolved . | . . . Power . | . . . Propulsion . | . . . Utility . | . . . Weapon . | . . . Parts Attached 23 | 7 6 10 Power 2 | 1 . 1 Engine 2 | 1 . 1 Core . | . . . Reactor . | . . . Propulsion 6 | 2 . 4 Treads 5 | 2 . 3 Leg . | . . . Wheel 1 | . . 1 Hover . | . . . Flight . | . . . Utility 4 | 1 3 . Device 2 | . 2 . Storage 2 | 1 1 . Processor . | . . . Hackware . | . . . Protection . | . . . Artifact . | . . . Weapon 11 | 3 3 5 Energy Gun 5 | 1 2 2 Energy Cannon 1 | . . 1 Ballistic Gun 3 | 2 . 1 Ballistic Cannon 1 | . . 1 Launcher . | . . . Special Weapon 1 | . 1 . Impact Weapon . | . . . Slashing Weapon . | . . . Piercing Weapon . | . . . Special Melee Weapon . | . . . Unidentified Prototypes 1 | . 1 . Parts Lost 11 | . . 11 Power 2 | . . 2 Propulsion 4 | . . 4 Utility 2 | . . 2 Weapon 3 | . . 3 Highest Loss Streak 4 | . . 4 To Critical Strikes . | . . . Average Backups 8 | 1 5 9 Power . | . 1 . Propulsion 2 | . . 3 Utility . | . . . Weapon 4 | . 4 4 Tool/Special . | . . . Unused Backups 6 | . . 6 Power . | . . . Propulsion 4 | . . 4 Utility . | . . . Weapon 1 | . . 1 Tool/Special 1 | . . 1 Average Slot Usage (%) 98 | . 94 99 Engine 14 | . 14 14 Treads 27 | . 28 27 Device 12 | . 8 13 Storage 14 | . 14 14 Energy Gun 10 | . 24 8 Energy Cannon 3 | . . 4 Ballistic Gun 6 | . 3 7 Ballistic Cannon 6 | . . 8 Peak Build Rating 14 | 6 14 14 Average Rating 10 | 5 10 11 On Entrance 6 | . 6 12 Avg Prop Armor Cover (%) 13 | . . 13 Naked Turns . | . . . Heaviest Build 28 | 14 22 28 Greatest Support 40 | 40 40 40 Greatest Overweight (x) 4 | 4 . 1 Average Overweight (x) . | . . . Largest Inventory Capacity 10 | 8 10 10 Average Capacity 9 | 7 8 10 Most Carried 10 | 2 9 10 Average Carried 8 | 1 5 9 Final Capacity 10 | 8 10 10 Final Carried 10 | 2 9 10 Class Distribution -------------------- 76% | Mutant 23% | Scavenger-Mutant Dominant Class ---------------- Mutant | -10/Materials Mutant | -10/Subcaves Resources | -11 -10 -10 ----------- Run | Yrd Mat Sub Matter Collected 712 | 240 115 357 Remotely . | . . . Salvage Created 921 | . 511 410 Parts 52 | . 27 25 Haulers Intercepted 1 | . 1 . Recyclers Shooed . | . . . Parts Field Recycled . | . . . Retrieved Matter . | . . . Parts Self-Destructed 21 | . . 21 Prevented . | . . . Parts Restored . | . . . Kills | -11 -10 -10 ------- Run | Yrd Mat Sub Combat Hostiles Destroyed 26 | . 12 14 Guns 23 | . 12 11 Cannons 3 | . . 3 Classes Destroyed 6 | . 4 2 Hauler 1 | . 1 . Recycler 1 | . 1 . Swarmer 9 | . 3 6 Grunt 10 | . 9 1 Sentry 1 | . . 1 Subdweller 6 | . . 6 Best Kill Streak 6 | . 6 3 Combat Bots Only 5 | . 5 3 Max Kills in Single Turn 1 | . 1 1 Gunslinging . | . . . Exploded . | . . . Melee . | . . . Uniques/NPCs Destroyed . | . . . Combat | -11 -10 -10 -------- Run | Yrd Mat Sub Hostile Shots Fired 148 | . 26 122 Missed 38 | . 5 33 Hits 110 | . 21 89 Projectile 110 | . 21 89 AOE 4 | . . 4 Critical Strikes 3 | . 1 2 Damage Taken 1608 | . 230 1378 Core 266 | . 42 224 Absorbed by Shields . | . . . Core Remaining (%) 100 | 100 . . Volleys Fired 108 | . 27 81 Largest 2 | . 2 2 Hottest 140 | . 112 140 Shots Fired 176 | . 51 125 Gun 126 | . 50 76 Cannon 49 | . . 49 Launcher . | . . . Special 1 | . 1 . Kinetic 58 | . 5 53 Thermal 118 | . 46 72 Explosive . | . . . Electromagnetic . | . . . Robot Hit Streak 15 | . 15 11 Robot Miss Streak 3 | . 3 3 Penetration Max . | . . . Secondary Targets 3 | . 2 1 Max Gunslinging Chain 1 | . 1 1 Shots Hit Robots 96 | . 35 61 Core Hits 36 | . 15 21 Critical Kills . | . . . Critical Parts Destroyed 1 | . 1 . Critical Strikes 13 | . 10 3 Burn 11 | . 9 2 Destroy 1 | . 1 . Blast 1 | . . 1 Melee Attacks . | . . . Impact . | . . . Slashing . | . . . Piercing . | . . . Sneak Attacks . | . . . Combat Hostiles . | . . . Follow-up Attacks . | . . . Damage Inflicted 1735 | . 601 1134 Guns 1509 | . 601 908 Cannons 226 | . . 226 Explosions . | . . . Melee . | . . . Ramming . | . . . Kinetic 394 | . 39 355 Thermal 1341 | . 562 779 Explosive . | . . . Electromagnetic . | . . . Impact . | . . . Slashing . | . . . Piercing . | . . . Highest Corruption . | . . . Average Corruption . | . . . Corruption Purged . | . . . Corruption Blocked . | . . . Overload Shots . | . . . Overflow Damage . | . . . Projectiles . | . . . Explosions . | . . . Melee . | . . . Knockbacks 3 | . . 3 Impact . | . . . Kinetic 2 | . . 2 Secondary 1 | . . 1 Self-Inflicted Damage . | . . . Shots . | . . . Rammed . | . . . Targets Rammed . | . . . Kicked . | . . . Crushed . | . . . Highest Temperature 266 | . 266 14 Average Temperature 94 | . 97 4 Received Heat Transfer 456 | . 117 339 Effects 1 | . 1 . Energy Bleed 1 | . 1 . Siege Activations . | . . . Martial Activations . | . . . Shielding Activations . | . . . Robots Disrupted . | . . . Combat Hostiles . | . . . Robots Corrupted . | . . . Combat Hostiles . | . . . Parts Fried . | . . . Impact Corruptions . | . . . Robots Melted . | . . . Combat Hostiles . | . . . Parts Melted 6 | . 4 2 Heat Transferred 3651 | . 1850 1801 Parts Sabotaged . | . . . Parts Stolen . | . . . Parts Stripped . | . . . Power Chain Reactions . | . . . Alert | -11 -10 -10 ------- Run | Yrd Mat Sub Maximum Alert Level . | . . . Low Security (%) 100 | 100 100 . Level 1 . | . . . Level 2 . | . . . Level 3 . | . . . Level 4 . | . . . Level 5 . | . . . High Security . | . . . Max Security . | . . . Peak Influence 167 | . 167 . Initial . | . . . Average 66 | . 75 . Influence Increases 628 | . 363 265 Destroy 0b10 Robot/C 400 | . 240 160 Destroy 0b10 Robot/NC 10 | . 10 . Destroy Leader 42 | . 42 . Successful Hack 10 | . 10 . Select Force Hacks 30 | . 30 . Destroy Structure 1 | . 1 . Lose Combat Pursuer 135 | . 30 105 Influence Decreases 628 | . 220 408 Entered New Map 70 | . . 70 Time Decay 528 | . 220 308 Lost Part 30 | . . 30 Squads Dispatched 2 | . 2 . Investigation 2 | . 2 . Extermination . | . . . Reinforcement . | . . . Assault . | . . . Garrison . | . . . Intercept . | . . . Searches Triggered . | . . . Construction Impeded . | . . . Haulers Reinforced . | . . . Active Scanning Responses . | . . . Cargo Convoy Interrupts . | . . . Stealth | -11 -10 -10 --------- Run | Yrd Mat Sub Distress Signals . | . . . Communications Jammed . | . . . Distress Signals . | . . . Times Spotted 42 | . 18 24 Peak Tracking Total 5 | . 5 3 Tactical Retreats 5 | . 1 4 Traps | -11 -10 -10 ------- Run | Yrd Mat Sub Traps Triggered 1 | . 1 . Indirectly . | . . . Trap Hack Attempts . | . . . Triggered . | . . . Disarmed . | . . . Reprogrammed . | . . . Reused . | . . . Traps Extracted . | . . . Installed . | . . . Triggered . | . . . Machines | -11 -10 -10 ---------- Run | Yrd Mat Sub Machines Disabled . | . . . Max in Single Turn . | . . . Machines Repaired . | . . . Machines Dismantled . | . . . Machines Sabotaged . | . . . Overloaded Fab Kills . | . . . Hacking | -11 -10 -10 --------- Run | Yrd Mat Sub Machines Accessed 5 | . 4 1 Terminals 3 | . 3 . Fabricators . | . . . Repair Stations . | . . . Recycling Units 1 | . 1 . Scanalyzers . | . . . Garrison Access . | . . . Total Hacks 14 | . 10 4 Successful 8 | . 4 4 Failed 6 | . 6 . Catastrophic 1 | . 1 . Database Lockouts . | . . . Manual 9 | . 9 . Terminals 9 | . 9 . Fabricators . | . . . Repair Stations . | . . . Recycling Units 1 | . 1 . Scanalyzers . | . . . Garrison Access . | . . . Terminal Hacks 6 | . 2 4 Record 4 | . . 4 Robot Analysis 2 | . 2 . Fabricator Hacks . | . . . Repair Station Hacks . | . . . Recycling Unit Hacks . | . . . Scanalyzer . | . . . Garrison Access Hacks . | . . . Unauthorized Hacks 2 | . 2 . Terminals 1 | . 1 . Botnet 1 | . 1 . Fabricators . | . . . Repair Stations . | . . . Recycling Units 1 | . 1 . Tunnel 1 | . 1 . Scanalyzers . | . . . Garrison Access . | . . . Data Cores Recovered . | . . . Used . | . . . Hacking Detections 3 | . 3 . Full Trace Events . | . . . Feedback Events . | . . . Feedback Blocked . | . . . Robot Schematics Acquired . | . . . Robots Built . | . . . Authchips . | . . . Time . | . . . Total Robot Build Rating . | . . . Part Schematics Acquired . | . . . Parts Built . | . . . Authchips . | . . . Time . | . . . Total Part Build Rating . | . . . Part Studies Acquired . | . . . Parts Repaired . | . . . Time . | . . . Parts Recycled . | . . . Recycled Matter . | . . . Retrieved Matter . | . . . Retrieved Components . | . . . Parts Scanalyzed . | . . . Part Schematics Acquired . | . . . Parts Damaged . | . . . Bothacking | -11 -10 -10 ------------ Run | Yrd Mat Sub Used RIF Installer . | . . . Robots Hacked . | . . . Non-combat . | . . . Combat . | . . . Robot Hacks Applied . | . . . Relay Couplers Released . | . . . Fabnet Peak Effective % . | . . . Robots Rewired . | . . . Allies Hacked . | . . . Hacks Repelled . | . . . Allies | -11 -10 -10 -------- Run | Yrd Mat Sub Total Allies . | . . . Largest Group . | . . . Highest-Rated Group . | . . . Highest-Rated Ally . | . . . Total Orders . | . . . Ally Attacks . | . . . Total Damage . | . . . Kills . | . . . Allies Corrupted . | . . . Allies Melted . | . . . Intel | -11 -10 -10 ------- Run | Yrd Mat Sub Active Infowar (turns) . | . . . Robot Analysis Total 2 | . 2 . Derelict Logs Recovered 2 | . . 2 Drone Launches . | . . . Drone Recoveries . | . . . Exploration | -11 -10 -10 ------------- Run | Yrd Mat Sub Turns Passed 3352 | 78 592 2682 Spaces Moved 1851 | 43 293 1515 Core 10 | 10 . . Treads 1763 | 33 293 1437 Legs . | . . . Wheels 78 | . . 78 Hover . | . . . Flight . | . . . Fastest Speed 50 | 50 160 120 Average Speed 158 | 155 160 158 Slowest Speed 250 | 250 160 240 Overloaded Moves . | . . . Propulsion Burnouts . | . . . Robots Hopped . | . . . Potential Cave-ins 6 | . . 6 Cave-ins Triggered . | . . . Exploration Rate (%) 38 | 3 37 75 Regions Visited 2 Branch Regions 1 Pre-discovered Areas 4 | . 1 3 Known Exits Taken . | . . . Unknown Exits Taken 2 | 1 1 . Scrap Searched 4 | . . 4 Spaces Dug 11 | . . 11 Terrain Destroyed 18 | . . 18 Melee . | . . . Projectile 18 | . . 18 AOE . | . . . Terrain Rammed . | . . . Walls Destroyed . | . . . Machines Disabled . | . . . Actions | -11 -10 -10 --------- Run | Yrd Mat Sub Total 2092 | 51 360 1681 Wait 86 | . 28 58 Move 1849 | 42 292 1515 Hop . | . . . Pick Up 15 | 2 4 9 Fast Attach 10 | 6 2 2 Attach 6 | . . 6 Detach 1 | . 1 . Swap 12 | 1 6 5 Drop 5 | . . 5 Fire 108 | . 27 81 Melee . | . . . Ram . | . . . Kick . | . . . Crush . | . . . Escape Stasis . | . . . Rewire . | . . . Trap . | . . . Miscellaneous . | . . . Route ------- -11/Scrapyard -10/Materials (discovered 3 exits: [*Mat] / [*Min] / *Sub) -10/Subcaves (discovered 1 exit: [*Rec]) History --------- Turn | Location | Event 23 | -11/Scrapyard | Discovered new exit (range 15) 79 | -11/Scrapyard | Entered Materials 338 | -10/Materials | Build established: Mutant 367 | -10/Materials | Discovered new exit (range 3) 399 | -10/Materials | Discovered new exit (range 12) 666 | -10/Materials | Discovered new exit (range 3) 671 | -10/Materials | Entered Subcaves 672 | -10/Subcaves | Approached by a straggling Scientist 761 | -10/Subcaves | Ambushed by Subdweller buried in earth 863 | -10/Subcaves | Ambushed by Subdwellers from Twisted Machinery 972 | -10/Subcaves | Lost 3 parts (1p2n) 1037 | -10/Subcaves | Core integrity fell below 50% 1123 | -10/Subcaves | Discovered new exit (range 15) 1128 | -10/Subcaves | Lost 3 parts (1n2w) 1226 | -10/Subcaves | Build established: Scavenger-Mutant 1392 | -10/Subcaves | Shifting Twisted Machinery released Humpback 1401 | -10/Subcaves | Shifting Twisted Machinery released Multitool 1579 | -10/Subcaves | Learned location of Storage (-8) 1644 | -10/Subcaves | Build established: Mutant 1656 | -10/Subcaves | Learned location of Zion (-6) 1656 | -10/Subcaves | Met a Zionite searching for "candidates" 1678 | -10/Subcaves | Shifting Twisted Machinery released Sub. Power Source 1730 | -10/Subcaves | Shifting Twisted Machinery released Piercing Trap 1733 | -10/Subcaves | Shifting Twisted Machinery released Sub. Machine Gun 1811 | -10/Subcaves | Core integrity fell below 20% 2681 | -10/Subcaves | Visited Clippyterm 2686 | -10/Subcaves | Learned Factory fabricator intel 2686 | -10/Subcaves | Learned Research security intel 3282 | -10/Subcaves | Build established: Scavenger-Mutant 3350 | -10/Subcaves | Ambushed by Subdwellers from Twisted Machinery 3353 | -10/Subcaves | Destroyed by VV-94Y(R) with Subdweller Shrapnel Launcher Last Messages --------------- 02962_ S-10 Pest destroyed. 02963_ Acquired 5 matter. 7N-AQY(c): "I think it's somewhere southwest of here" 02971_ Subatomizers dissect the Disposable Heat Sink. 02975_ Dropped Battle Cannon. 02976_ Acquired Sub. Laser. 03012_ Acquired 10 matter. 7N-AQY(c): "I think it's somewhere south of here" 03055_ 7N-AQY(c) triggered Piercing Trap. 03055_ Spikes shoot up from the floor. 03055_ 7N-AQY(c) destroyed. 03350_ NW-WDH(R) emerges from the Twisted Machinery. 03350_ Ion Engine destroyed. 03351_ Heat Sink destroyed. 03351_ Lgt. Treads destroyed. 03353_ Sub. Laser destroyed. Map ----- +----------------------------------------------------+ | ??????????????????????????????????"??????????????? | | ?????????????????????????????????? ?##???????????? | | ?????????????????????????????????? "??????????? | | ?????????????????????????????????? ??????????? | | ??????????????????????????????????? ??????????? | | ??????????????????????????????????? ??????????? | | ?????????????????????????????????## #??????????? | | ?????????????????????????????????# # ??????????? | | ?????????????????????????????????? ??????????? | | ??????????????????????????????????# ??????????? | | ??????????????????????????????????# "#??????????? | | ?????????????????????###???????????#""#####??????? | | ??????????????????? ;; ???????????#" "## #??????? | | ???????????????? ?? ???????????#" " #??????? | | ?????????????? ? ?????????#"##" "#??????? | | ??????????????? ?????????##?### "##?????? | | ???????????????#; &%& ??????????????## #?????? | | ???????????????#; % ?????????###?## #?????? | | ???????????????? ????????##"### ##?????? | | ????????????????? ??##???## " ##??????? | | ?????????????????? " ## ##### % ##???????? | | ???????????????????# ## #????????? | | ???????????????????## ## #????????? | | ??????????????????## # #????????? | | ???????????????#;;#; #????????? | | ???????????#" ;; ; @ ########## | | ????????????"" R ### ## | | ???????????#" R #?# | | ???????????# # ; #?# | | ?????????????###;;;; #?# ###### ##### | | ???????????????## #;;;########?######????####???? | | ????????????????##?####??????????????????????????? | | ?????????????????????????????????????????????????? | | ?????????????????????????????????????????????????? | | ?????????????????????????????????????????????????? | | ?????????????????????????????????????????????????? | | ?????????????????????????????????????????????????? | | ?????????????????????????????????????????????????? | | ?????????????????????????????????????????????????? | | ?????????????????????????????????????????????????? | | ?????????????????????????????????????????????????? | | ?????????????????????????????????????????????????? | | ?????????????????????????????????????????????????? | | ?????????????????????????????????????????????????? | | ?????????????????????????????????????????????????? | | | | | | | | | | | +----------------------------------------------------+ Best States ------------- Heat Dissipation 39 Energy Generation 10 Energy Capacity 250 Matter Stores 300 Matter Capacity 300 Sight Range 16 Terrain Scan Density 10 Evasion (%) 40 Recoil Reduction 2 Item Schematics ----------------- None Robot Schematics ------------------ None Fabricated ------------ Nothing Repaired ---------- Nothing Studied --------- None Alien Tech Used ----------------- None Achievements -------------- None Challenges ------------ None Game ------ Seed FlyingLayeredHammer Manual? 0 Play Time 00:14:35 Cumulative 342.4 hours Start 2026.09.06 @ 16:42:01 End 2026.09.06 @ 16:54:34 Sessions 1 Manual Loads 0 Difficulty Rogue Special Mode None Game No. 322 Rogue 268 Adventurer 54 Explorer 0 Win Type - Total 16 Types 11/1/1/1/0/0/0/1/0/1 Lore% 81 Gallery% 69 Achievement% 65 Wizard Run 0 Options --------- Layout 1 ASCII 0 Keyboard 0 Movement Mouse Keybinds 1 Fullscreen 2 Font 32/Tamsyn Map View 50x35 Zoom Use 0% Tactical HUD 1 Map Filters NONE Filters NONE Steam 1 RUN: da8a06d3-c756-4ce8-852a-425f815f4ad8